fUST/lending_fUST_20240502
["ID","MTS","AMOUNT","RATE_DAILY","PERIOD"]
[325209323,1714588241602,-500.0,0.00052876,120]
[325209324,1714588241612,-530.77,0.00052876,120]
[325209325,1714588241621,-970.01,0.00052876,120]
[325209326,1714588241631,-500.0,0.00052876,120]
[325209327,1714588241640,-500.0,0.00052876,120]
[325209328,1714588241649,-500.0,0.00052876,120]
[325209329,1714588241658,-500.0,0.00052876,120]
[325209330,1714588241667,-1085.82,0.00052876,120]
[325209331,1714588241676,-898.34,0.00052876,120]
[325209332,1714588241686,-500.0,0.00052876,120]
[325209333,1714588241698,-500.0,0.00052876,120]
[325209334,1714588241707,-500.0,0.00052876,120]
[325209335,1714588241716,-500.0,0.00052876,120]
[325209336,1714588241727,-500.0,0.00052876,120]
[325209337,1714588241736,-500.0,0.00052876,120]
[325209338,1714588241745,-500.0,0.00052876,120]
[325209340,1714588241754,-500.0,0.00052876,5]
[325209341,1714588241763,-500.0,0.00052876,120]
[325209343,1714588241773,-500.0,0.00052876,120]
[325209345,1714588241784,-1096.38,0.00052876,120]
[325209346,1714588241795,-500.0,0.00052876,120]
[325209347,1714588241804,-500.0,0.00052876,120]
[325209348,1714588241814,-500.0,0.00052876,120]
[325209349,1714588241823,-500.0,0.00052876,120]
[325209350,1714588241832,-500.0,0.00052876,120]
[325209351,1714588241841,-500.0,0.00052876,120]
[325209352,1714588241851,-500.0,0.00052876,120]
[325209353,1714588241861,-1068.79,0.00052876,120]
[325209354,1714588241870,-761.11,0.00052876,120]
[325209355,1714588241879,-863.59,0.00052876,120]
[325209356,1714588241888,-735.78,0.00052876,120]
[325209357,1714588241897,-500.0,0.00052876,120]
[325209358,1714588241906,-410.11147353,0.00052876,120]
[325209359,1714588241915,-500.0,0.00052876,120]
[325209360,1714588241925,-500.0,0.00052876,120]
[325209361,1714588241934,-1553.6,0.00052876,120]
[325209362,1714588241943,-500.0,0.00052876,120]
[325209363,1714588241953,-500.0,0.00052876,120]
[325209364,1714588241962,-500.0,0.00052876,120]
[325209365,1714588241971,-500.0,0.00052876,120]
[325209366,1714588241980,-500.0,0.00052876,120]
[325209367,1714588241989,-500.0,0.00052876,120]
[325209368,1714588241998,-511.91,0.00052876,120]
[325209369,1714588242007,-500.0,0.00052876,120]
[325209370,1714588242017,-500.0,0.00052876,120]
[325209371,1714588242026,-500.0,0.00052876,120]
[325209372,1714588242038,-916.2,0.00052876,120]
[325209373,1714588242047,-500.0,0.00052876,120]
[325209374,1714588242056,-500.0,0.00052876,120]
[325209375,1714588242065,-500.0,0.00052876,120]
[325209376,1714588242074,-500.0,0.00052876,120]
[325209377,1714588242083,-500.0,0.00052876,120]
[325209378,1714588242093,-500.0,0.00052876,120]
[325209379,1714588242102,-500.0,0.00052876,120]
[325209380,1714588242111,-506.23410785,0.00052876,120]
[325209381,1714588242120,-500.0,0.00052876,120]
[325209382,1714588242129,-500.0,0.00052876,120]
[325209383,1714588242138,-500.0,0.00052876,120]
[325209384,1714588242147,-3340.23,0.00052876,120]
[325209385,1714588242156,-500.0,0.00052876,120]
[325209386,1714588242165,-500.0,0.00052876,120]
[325209387,1714588242175,-539.88,0.00052876,120]
[325209388,1714588242184,-500.96075011,0.00052876,120]
[325209389,1714588242193,-772.53,0.00052876,120]
[325209390,1714588242202,-3357.91,0.00052876,120]
[325209391,1714588242212,-500.0,0.00052876,120]
[325209392,1714588242221,-500.0,0.00052876,120]
[325209393,1714588242230,-500.0,0.00052876,120]
[325209395,1714588242240,-500.0,0.00052876,120]
[325209396,1714588242249,-500.0,0.00052876,120]
[325209398,1714588242258,-500.0,0.00052876,120]
[325209400,1714588242267,-759.51,0.00052876,120]
[325209401,1714588242276,-1103.98,0.00052876,120]
[325209402,1714588242287,-527.46554075,0.00052876,120]
[325209403,1714588242296,-500.0,0.00052876,120]
[325209404,1714588242306,-500.0,0.00052876,120]
[325209405,1714588242315,-500.0,0.00052876,120]
[325209407,1714588242324,-500.0,0.00052876,120]
[325209409,1714588242333,-500.0,0.00052876,120]
[325209410,1714588242342,-517.69,0.00052876,120]
[325209411,1714588242351,-500.0,0.00052876,120]
[325209412,1714588242362,-500.0,0.00052876,120]
[325209413,1714588242371,-500.0,0.00052876,120]
[325209414,1714588242380,-500.0,0.00052876,120]
[325209415,1714588242389,-500.0,0.00052876,120]
[325209416,1714588242398,-577.05,0.00052876,120]
[325209417,1714588242408,-600.17,0.00052876,120]
[325209418,1714588242417,-500.0,0.00052876,120]
[325209419,1714588242426,-500.0,0.00052876,120]
[325209420,1714588242435,-702.94,0.00052876,120]
[325209423,1714588242444,-500.0,0.00052876,120]
[325209426,1714588242453,-500.0,0.00052876,120]
[325209428,1714588242463,-500.0,0.00052876,30]
[325209430,1714588242472,-500.0,0.00052876,120]
[325209432,1714588242482,-500.0,0.00052876,120]
[325209434,1714588242491,-500.0,0.00052876,120]
[325209435,1714588242500,-500.0,0.00052876,120]
[325209436,1714588242509,-500.0,0.00052876,120]
[325209437,1714588242518,-500.0,0.00052876,120]
[325209438,1714588242527,-500.0,0.00052876,120]
[325209439,1714588242538,-500.0,0.00052876,120]
[325209440,1714588242547,-500.0,0.00052876,120]
[325209441,1714588242556,-500.0,0.00052876,120]
[325209442,1714588242564,-500.0,0.00052876,120]
[325209443,1714588242574,-500.0,0.00052876,120]
[325209445,1714588242583,-720.4,0.00052876,120]
[325209448,1714588242593,-500.0,0.00052876,120]
[325209451,1714588242602,-827.64,0.00052876,120]
[325209453,1714588242611,-500.0,0.00052876,120]
[325209455,1714588242620,-948.22,0.00052876,120]
[325209457,1714588242629,-500.0,0.00052876,120]
[325209459,1714588242638,-500.0,0.00052876,120]
[325209461,1714588242648,-500.0,0.00052876,120]
[325209463,1714588242657,-648.57,0.00052876,120]
[325209465,1714588242666,-540.29187084,0.00052876,120]
[325209467,1714588242675,-257.40077927,0.00052876,120]
[325209469,1714588242685,-11001.53,0.00052876,120]
[325209471,1714588242694,-500.0,0.00052876,120]
[325209472,1714588242703,-500.0,0.00052876,120]
[325209476,1714588242716,-3010.42,0.00052876,120]
[325209481,1714588242726,-500.0,0.00052876,120]
[325209484,1714588242735,-500.0,0.00052876,120]
[325209488,1714588242744,-500.0,0.00052876,120]
[325209491,1714588242753,-500.0,0.00052876,120]
[325209495,1714588242763,-500.0,0.00052876,120]
[325209497,1714588242773,-585.1803234,0.00052876,120]
[325209499,1714588242785,-500.0,0.00052876,120]
[325209501,1714588242794,-500.0,0.00052876,120]
[325209503,1714588242804,-500.0,0.00052876,120]
[325209505,1714588242816,-500.0,0.00052876,120]
[325209507,1714588242826,-500.0,0.00052876,120]
[325209508,1714588242835,-500.0,0.00052876,120]
[325209509,1714588242845,-500.0,0.00052876,120]
[325209510,1714588242854,-1011.14,0.00052876,120]
[325209511,1714588242863,-500.0,0.00052876,120]
[325209512,1714588242873,-500.0,0.00052876,120]
[325209513,1714588242882,-500.0,0.00052876,120]
[325209514,1714588242892,-500.0,0.00052876,120]
[325209515,1714588242901,-1150.05,0.00052876,120]
[325209516,1714588242911,-500.0,0.00052876,120]
[325209517,1714588242920,-500.0,0.00052876,120]
[325209518,1714588242929,-587.62,0.00052876,120]
[325209519,1714588242939,-500.0,0.00052876,120]
[325209520,1714588242948,-969.0,0.00052876,120]
[325209521,1714588242957,-500.0,0.00052876,120]
[325209522,1714588242966,-500.0,0.00052876,120]
[325209523,1714588242976,-500.0,0.00052876,120]
[325209524,1714588242985,-500.0,0.00052876,120]
[325209525,1714588242994,-263.34115644,0.00052876,120]
[325209526,1714588243004,-500.0,0.00052876,120]
[325209527,1714588243013,-500.0,0.00052876,120]
[325209528,1714588243023,-500.0,0.00052876,120]
[325209531,1714588243204,-500.0,0.00052876,120]
[325209533,1714588243214,-500.0,0.00052876,120]
[325209535,1714588243223,-500.0,0.00052876,120]
[325209537,1714588243232,-314.27036028,0.00052876,120]
[325209538,1714588243241,-500.0,0.00052876,120]
[325209540,1714588243250,-675.86,0.00052876,120]
[325209542,1714588243260,-500.0,0.00052876,120]
[325209544,1714588243270,-500.0,0.00052876,120]
[325209546,1714588243279,-500.35493592,0.00052876,120]
[325209547,1714588243292,-500.0,0.00052876,120]
[325209548,1714588243301,-849.73,0.00052876,7]
[325209549,1714588243310,-500.0,0.00052876,120]
[325209552,1714588243320,-8276.28,0.00052876,120]
[325209555,1714588243329,-500.0,0.00052876,120]
[325209557,1714588243337,-500.0,0.00052876,120]
[325209559,1714588243347,-1372.79,0.00052876,120]
[325209560,1714588243356,-500.0,0.00052876,120]
[325209561,1714588243370,-65.70969012,0.00052876,120]
[325209564,1714588243594,-305.095,0.00052876,120]
[325209565,1714588244330,-234.43772085,0.00019893,2]
[325209566,1714588244339,-552.95530988,0.00052876,120]
[325209567,1714588244349,-546.87,0.00052876,60]
[325209568,1714588244358,-500.0,0.00052876,120]
[325209569,1714588244368,-500.0,0.00052876,120]
[325209570,1714588244377,-500.0,0.00052876,120]
[325209571,1714588244387,-229.85836179,0.00052876,120]
[325209573,1714588244398,-270.14163821,0.00052876,120]
[325209574,1714588244407,-500.0,0.00052876,120]
[325209575,1714588244416,-565.64175198,0.00052876,120]
[325209576,1714588244425,-880.83232045,0.00052876,120]
[325209597,1714589100273,154.81422293,9.999e-05,2]
[325209598,1714589195450,2845.18577707,9.999e-05,2]
[325209599,1714589195482,9000.0,9.999e-05,2]
[325209600,1714589195514,7357.16528404,9.999e-05,2]
[325209601,1714589215186,1642.83471596,9.999e-05,2]
[325209602,1714589215395,5152.66826547,9.999e-05,2]
[325209659,1714589433165,-730.81737118,0.000138,2]
[325209661,1714589433178,-160.83272,0.00019312,2]
[325209662,1714589433188,-205.13300577,0.000199,2]
[325209665,1714589433197,-206.84821855,0.0001991,2]
[325209666,1714589433207,-81.94515808,0.0001991,2]
[325209669,1714589433219,-107.94390308,0.0001991,2]
[325209671,1714589433228,-309.11870033,0.00019911,2]
[325209673,1714589433238,-601.29414702,0.00019911,2]
[325209783,1714589438503,-12268.48923237,0.00019911,2]
[325209785,1714589438514,-24900.0,0.00019912,2]
[325209787,1714589438523,-13426.28771639,0.0002,2]
[325209788,1714589438532,-249.98809231,0.00020811,2]
[325209789,1714589438541,-1103.07707818,0.00020912,2]
[325209790,1714589438550,-789.83934928,0.00020912,2]
[325209791,1714589438559,-3778.64009824,0.00020912,2]
[325209792,1714589438568,-717.86575868,0.00020912,2]
[325209793,1714589438577,-1880.12188062,0.00020912,2]
[325209794,1714589438586,-638.55929158,0.00020913,2]
[325209795,1714589438595,-328.69755751,0.00020913,2]
[325209796,1714589438605,-583.51833665,0.00020913,2]
[325209797,1714589438614,-295.20991838,0.00020913,2]
[325209798,1714589438622,-217.2,0.00028049,3]
[325209799,1714589438631,-205.13300574,0.00029109,2]
[325209800,1714589438641,-217.2,0.0003199,3]
[325209801,1714589438650,-511.1096866,0.00032,4]
[325209802,1714589438659,-217.2,0.0003346,3]
[325209803,1714589438667,-466.46671286,0.00034,4]
[325209804,1714589438676,-205.13300574,0.00038319,2]
[325209805,1714589438685,-217.2,0.00038871,3]
[325209806,1714589438695,-607.97129,0.00038885,2]
[325209807,1714589438704,-5000.0,0.00039,4]
[325209808,1714589438713,-619.62802958,0.00039974,7]
[325209809,1714589438722,-320.91168409,0.00041066,30]
[325209810,1714589438731,-154.87424562,0.00041875,30]
[325209811,1714589438740,-217.2,0.00044282,3]
[325209812,1714589438750,-151.0,0.00045,120]
[325209813,1714589438759,-151.0,0.0004589,120]
[325209814,1714589438768,-151.0,0.00046767,120]
[325209815,1714589438778,-493.0,0.00046869,2]
[325209816,1714589438787,-2000.0,0.00046889,120]
[325209817,1714589438797,-205.13300574,0.00047528,2]
[325209818,1714589438806,-151.0,0.00047644,120]
[325209819,1714589438815,-1000.0,0.00048,15]
[325209820,1714589438824,-151.0,0.00048521,120]
[325209821,1714589438833,-153.32315408,0.00048902,30]
[325209822,1714589438843,-151.0,0.00049397,120]
[325209823,1714589438852,-217.2,0.00049693,30]
[325209824,1714589438861,-160.950937,0.00049863,2]
[325209825,1714589438870,-401.936046,0.00049863,2]
[325209826,1714589438880,-493.0,0.00049869,2]
[325209827,1714589438889,-486.33472313,0.0005,14]
[325209828,1714589438898,-163.42371031,0.0005,7]
[325209829,1714589438907,-267.94663958,0.0005,30]
[325209830,1714589438917,-151.0,0.00050274,120]
[325209831,1714589438926,-151.0,0.00051151,120]
[325209832,1714589438943,-10484.0,0.00051234,120]
[325209833,1714589438953,-3000.0,0.00052,90]
[325209834,1714589438962,-151.0,0.00052,60]
[325209835,1714589438971,-2306.18,0.00052,120]
[325209836,1714589438981,-151.0,0.00052027,120]
[325209837,1714589438992,-1581.11,0.00052054,120]
[325209838,1714589439001,-166.666666,0.00052055,2]
[325209839,1714589439010,-10000.0,0.00052345,120]
[325209840,1714589439020,-2158.05294287,0.00052625,120]
[325209841,1714589439030,-195.63652204,0.00052775,120]
[325209842,1714589439039,-269.85407038,0.00052775,31]
[325209843,1714589439047,-1581.11,0.00052775,120]
[325209844,1714589439057,-1581.11,0.00052775,120]
[325209845,1714589439066,-1581.11,0.00052775,120]
[325209846,1714589439075,-2000.0,0.00052776,2]
[325209847,1714589439083,-88888.0,0.00052776,120]
[325209848,1714589439092,-185.30770521,0.00052776,2]
[325209849,1714589439102,-493.0,0.00052869,120]
[325209850,1714589439111,-999.0,0.00052875,120]
[325209851,1714589439120,-999.0,0.00052875,120]
[325209852,1714589439129,-999.0,0.00052875,120]
[325209853,1714589439139,-999.0,0.00052875,120]
[325209854,1714589439148,-999.0,0.00052875,120]
[325209855,1714589439157,-1581.11,0.00052875,120]
[325209856,1714589439167,-1581.11,0.00052875,120]
[325209857,1714589439176,-1581.11,0.00052875,120]
[325209858,1714589439185,-1581.11,0.00052875,120]
[325209859,1714589439195,-1581.11,0.00052875,120]
[325209860,1714589439204,-1581.11,0.00052875,120]
[325209861,1714589439213,-1581.11,0.00052875,120]
[325209862,1714589439222,-1581.11,0.00052875,120]
[325209863,1714589439231,-1581.11,0.00052875,120]
[325209864,1714589439240,-2293.37143665,0.00052876,61]
[325209865,1714589439249,-313.28276725,0.00052876,120]
[325209866,1714589439258,-500.0,0.00052876,120]
[325209867,1714589439268,-500.0,0.00052876,120]
[325209868,1714589439278,-500.0,0.00052876,120]
[325209869,1714589439287,-421.12139939,0.00052876,120]
[325209870,1714589439297,-500.0,0.00052876,120]
[325209871,1714589439306,-500.0,0.00052876,120]
[325209872,1714589439315,-1031.01,0.00052876,120]
[325209873,1714589439325,-500.0,0.00052876,120]
[325209874,1714589439334,-500.0,0.00052876,120]
[325209875,1714589439344,-500.0,0.00052876,120]
[325209876,1714589439353,-500.0,0.00052876,120]
[325209877,1714589439362,-500.0,0.00052876,120]
[325209878,1714589439372,-500.0,0.00052876,120]
[325209879,1714589439381,-500.0,0.00052876,120]
[325209880,1714589439391,-500.0,0.00052876,120]
[325209881,1714589439599,-839.27,0.00052876,120]
[325209882,1714589439609,-500.0,0.00052876,3]
[325209883,1714589439619,-500.0,0.00052876,120]
[325209884,1714589439628,-612.01089784,0.00052876,120]
[325209885,1714589439637,-500.0,0.00052876,120]
[325209886,1714589439647,-744.41,0.00052876,120]
[325209887,1714589439655,-500.0,0.00052876,120]
[325209888,1714589439665,-500.0,0.00052876,120]
[325209889,1714589439677,-500.0,0.00052876,120]
[325209890,1714589439687,-500.0,0.00052876,120]
[325209891,1714589439696,-500.0,0.00052876,120]
[325209892,1714589439706,-500.0,0.00052876,120]
[325209893,1714589439715,-502.14,0.00052876,120]
[325209894,1714589439724,-814.33,0.00052876,120]
[325209895,1714589439733,-505.30029406,0.00052876,120]
[325209896,1714589439742,-1274.03,0.00052876,120]
[325209897,1714589439752,-600.0,0.00052876,120]
[325209898,1714589439761,-500.0,0.00052876,120]
[325209901,1714589439771,-750.3,0.00052876,120]
[325209902,1714589439780,-500.0,0.00052876,120]
[325209904,1714589439789,-500.0,0.00052876,120]
[325209905,1714589439800,-500.0,0.00052876,120]
[325209906,1714589439809,-526.6,0.00052876,120]
[325209907,1714589439818,-500.0,0.00052876,120]
[325209908,1714589439827,-1061.1,0.00052876,120]
[325209909,1714589439836,-500.0,0.00052876,120]
[325209910,1714589439845,-500.0,0.00052876,120]
[325209911,1714589439855,-565.83795188,0.00052876,120]
[325209912,1714589439864,-500.0,0.00052876,120]
[325209913,1714589439873,-673.0,0.00052876,120]
[325209914,1714589439883,-500.0,0.00052876,120]
[325209915,1714589439892,-500.0,0.00052876,120]
[325209916,1714589439901,-500.0,0.00052876,120]
[325209917,1714589439910,-500.0,0.00052876,120]
[325209918,1714589439919,-500.0,0.00052876,120]
[325209919,1714589439928,-500.0,0.00052876,120]
[325209920,1714589439945,-500.0,0.00052876,120]
[325209921,1714589439954,-500.0,0.00052876,120]
[325209922,1714589439963,-500.0,0.00052876,120]
[325209925,1714589439972,-500.0,0.00052876,120]
[325209928,1714589439981,-500.0,0.00052876,120]
[325209930,1714589439994,-500.0,0.00052876,120]
[325209932,1714589440003,-500.0,0.00052876,120]
[325209933,1714589440012,-500.0,0.00052876,120]
[325209934,1714589440021,-500.0,0.00052876,120]
[325209935,1714589440031,-508.19253996,0.00052876,120]
[325209936,1714589440041,-913.35,0.00052876,2]
[325209937,1714589440050,-500.0,0.00052876,120]
[325209938,1714589440058,-500.0,0.00052876,120]
[325209939,1714589440067,-500.0,0.00052876,120]
[325209940,1714589440077,-874.09,0.00052876,120]
[325209941,1714589440087,-500.0,0.00052876,20]
[325209942,1714589440096,-500.0,0.00052876,120]
[325209943,1714589440107,-500.0,0.00052876,120]
[325209944,1714589440116,-500.0,0.00052876,120]
[325209945,1714589440125,-500.47129775,0.00052876,120]
[325209946,1714589440134,-500.0,0.00052876,120]
[325209948,1714589440143,-500.0,0.00052876,120]
[325209950,1714589440152,-500.0,0.00052876,120]
[325209951,1714589440162,-500.0,0.00052876,120]
[325209953,1714589440171,-500.0,0.00052876,120]
[325209955,1714589440183,-151.0,0.00052876,120]
[325209957,1714589440193,-500.0,0.00052876,120]
[325209959,1714589440202,-500.0,0.00052876,120]
[325209961,1714589440211,-414.68551336,0.00052876,120]
[325209962,1714589440220,-500.0,0.00052876,120]
[325209964,1714589440229,-500.0,0.00052876,7]
[325209965,1714589440238,-500.0,0.00052876,120]
[325209966,1714589440247,-500.0,0.00052876,120]
[325209967,1714589440256,-523.47522486,0.00052876,120]
[325209968,1714589440265,-797.88,0.00052876,120]
[325209969,1714589440274,-500.0,0.00052876,120]
[325209970,1714589440283,-500.0,0.00052876,120]
[325209971,1714589440291,-500.0,0.00052876,120]
[325209972,1714589440301,-500.0,0.00052876,120]
[325209974,1714589440309,-500.0,0.00052876,120]
[325209975,1714589440319,-500.0,0.00052876,120]
[325209977,1714589440328,-500.0,0.00052876,120]
[325209979,1714589440337,-500.0,0.00052876,120]
[325209981,1714589440346,-500.0,0.00052876,120]
[325209983,1714589440356,-481.78261855,0.00052876,120]
[325209984,1714589440365,-586.6582426,0.00052876,120]
[325209985,1714589440375,-500.0,0.00052876,120]
[325209986,1714589440384,-500.0,0.00052876,120]
[325209987,1714589440393,-500.0,0.00052876,120]
[325209988,1714589440402,-1147.1,0.00052876,120]
[325209989,1714589440412,-500.0,0.00052876,120]
[325209990,1714589440421,-418.10804058,0.00052876,120]
[325209991,1714589440432,-500.0,0.00052876,120]
[325209992,1714589440441,-500.0,0.00052876,120]
[325209993,1714589440451,-500.0,0.00052876,120]
[325209994,1714589440460,-1107.99,0.00052876,120]
[325209995,1714589440469,-567.44,0.00052876,120]
[325209996,1714589440478,-705.12,0.00052876,120]
[325209997,1714589440487,-500.0,0.00052876,120]
[325209998,1714589440497,-500.0,0.00052876,120]
[325209999,1714589440506,-500.0,0.00052876,120]
[325210000,1714589440515,-184.8153411,0.00052876,120]
[325210001,1714589440524,-500.0,0.00052876,120]
[325210003,1714589440533,-500.0,0.00052876,120]
[325210005,1714589440542,-500.0,0.00052876,120]
[325210007,1714589440552,-500.0,0.00052876,5]
[325210009,1714589440562,-531.91596761,0.00052876,120]
[325210011,1714589440571,-500.0,0.00052876,120]
[325210013,1714589440581,-500.0,0.00052876,120]
[325210015,1714589440590,-500.0,0.00052876,120]
[325210017,1714589440599,-500.0,0.00052876,120]
[325210019,1714589440609,-500.0,0.00052876,120]
[325210021,1714589440619,-500.0,0.00052876,120]
[325210023,1714589440628,-719.65,0.00052876,120]
[325210025,1714589440637,-500.0,0.00052876,120]
[325210027,1714589440647,-500.0,0.00052876,120]
[325210028,1714589440656,-500.0,0.00052876,120]
[325210030,1714589440665,-500.0,0.00052876,120]
[325210033,1714589440675,-500.0,0.00052876,120]
[325210035,1714589440687,-500.0,0.00052876,120]
[325210037,1714589440697,-500.0,0.00052876,120]
[325210039,1714589440707,-500.0,0.00052876,120]
[325210041,1714589440716,-504.23058945,0.00052876,120]
[325210043,1714589440725,-500.0,0.00052876,120]
[325210045,1714589440734,-500.0,0.00052876,120]
[325210046,1714589440743,-500.0,0.00052876,120]
[325210048,1714589440752,-500.0,0.00052876,120]
[325210050,1714589440762,-500.0,0.00052876,120]
[325210053,1714589440772,-916.2,0.00052876,120]
[325210055,1714589440782,-501.23310096,0.00052876,120]
[325210057,1714589440791,-500.0,0.00052876,120]
[325210059,1714589440805,-772.53,0.00052876,120]
[325210061,1714589440814,-500.0,0.00052876,120]
[325210063,1714589440824,-500.0,0.00052876,120]
[325210065,1714589440833,-500.0,0.00052876,120]
[325210067,1714589440842,-511.91,0.00052876,120]
[325210069,1714589440851,-500.0,0.00052876,120]
[325210071,1714589440860,-500.0,0.00052876,120]
[325210073,1714589440870,-514.42,0.00052876,120]
[325210075,1714589440879,-500.0,0.00052876,120]
[325210077,1714589440888,-500.0,0.00052876,120]
[325210079,1714589440898,-506.23410785,0.00052876,120]
[325210081,1714589440907,-500.0,0.00052876,120]
[325210083,1714589440917,-501.37907364,0.00052876,120]
[325210085,1714589440926,-500.0,0.00052876,120]
[325210087,1714589440938,-500.0,0.00052876,120]
[325210089,1714589440948,-1198.04,0.00052876,120]
[325210091,1714589440957,-500.0,0.00052876,120]
[325210093,1714589440967,-500.0,0.00052876,120]
[325210095,1714589440976,-500.0,0.00052876,120]
[325210097,1714589440985,-517.89564404,0.00052876,120]
[325210099,1714589440996,-500.0,0.00052876,120]
[325210101,1714589441006,-500.0,0.00052876,120]
[325210103,1714589441015,-500.0,0.00052876,120]
[325210105,1714589441026,-625.13,0.00052876,120]
[325210107,1714589441037,-500.0,0.00052876,120]
[325210109,1714589441046,-500.0,0.00052876,120]
[325210111,1714589441055,-500.0,0.00052876,120]
[325210113,1714589441064,-500.0,0.00052876,120]
[325210115,1714589441074,-500.0,0.00052876,120]
[325210117,1714589441083,-500.0,0.00052876,120]
[325210119,1714589441092,-500.0,0.00052876,120]
[325210121,1714589441101,-500.0,0.00052876,120]
[325210123,1714589441110,-500.0,0.00052876,120]
[325210125,1714589441119,-310.39049746,0.00052876,120]
[325210127,1714589441128,-500.0,0.00052876,120]
[325210129,1714589441137,-505.94488032,0.00052876,120]
[325210131,1714589441147,-500.0,0.00052876,120]
[325210133,1714589441156,-2237.61,0.00052876,120]
[325210135,1714589441165,-1140.05,0.00052876,120]
[325210137,1714589441174,-719.83,0.00052876,120]
[325210139,1714589441183,-500.0,0.00052876,120]
[325210140,1714589441193,-500.96075011,0.00052876,120]
[325210142,1714589441202,-500.0,0.00052876,120]
[325210144,1714589441212,-500.0,0.00052876,120]
[325210146,1714589441221,-500.0,0.00052876,30]
[325210149,1714589441230,-500.0,0.00052876,120]
[325210150,1714589441239,-283.71639104,0.00052876,120]
[325210152,1714589441249,-500.0,0.00052876,120]
[325210154,1714589441258,-500.0,0.00052876,120]
[325210156,1714589441268,-500.0,0.00052876,120]
[325210158,1714589441277,-190.99130353,0.00052876,20]
[325210160,1714589441286,-500.0,0.00052876,120]
[325210161,1714589441296,-965.17,0.00052876,120]
[325210162,1714589441305,-777.36,0.00052876,120]
[325210163,1714589441315,-585.1803234,0.00052876,120]
[325210164,1714589441324,-911.4,0.00052876,120]
[325210165,1714589441333,-154.78330338,0.00052876,2]
[325210166,1714589441341,-675.55,0.00052876,120]
[325210167,1714589441351,-595.81,0.00052876,120]
[325210168,1714589441360,-500.0,0.00052876,120]
[325210169,1714589441369,-500.0,0.00052876,2]
[325210170,1714589441378,-500.0,0.00052876,120]
[325210171,1714589441388,-500.0,0.00052876,120]
[325210172,1714589441397,-517.3,0.00052876,120]
[325210173,1714589441406,-500.0,0.00052876,120]
[325210174,1714589441415,-500.0,0.00052876,120]
[325210175,1714589441424,-619.74279753,0.00052876,120]
[325210176,1714589441435,-554.12,0.00052876,120]
[325210177,1714589441444,-705.36,0.00052876,120]
[325210178,1714589441453,-836.91,0.00052876,120]
[325210179,1714589441462,-500.0,0.00052876,120]
[325210180,1714589441471,-601.05,0.00052876,120]
[325210181,1714589441480,-542.5372522,0.00052876,120]
[325210182,1714589441489,-500.0,0.00052876,120]
[325210183,1714589441498,-791.02,0.00052876,120]
[325210184,1714589441507,-894.54,0.00052876,120]
[325210185,1714589441517,-500.70477529,0.00052876,120]
[325210186,1714589441526,-500.0,0.00052876,120]
[325210187,1714589441536,-500.0,0.00052876,120]
[325210188,1714589441545,-500.0,0.00052876,120]
[325210189,1714589441555,-500.0,0.00052876,120]